bitfinex-derivatives/quotes_ETHF0:USTF0_20250114
["timestamp","ask_amount","ask_price","bid_price","bid_amount"]
[1736885422868,3.45484956,3204.8,3204.7,0.31221]
[1736885423165,1.56018,3206.6,3204.7,43.79003835]
[1736885423166,3.45484956,3205.1,3204.7,43.79003835]
[1736885423370,3.45484956,3205.1,3205.0,3.30221835]
[1736885423576,1.4515,3205.8,3205.1,0.78043]
[1736885423773,1.4515,3205.8,3205.0,2.99003835]
[1736885424077,0.9526,3205.8,3205.2,0.78041]
[1736885424377,3.57178017,3205.7,3205.2,0.78041]
[1736885424678,3.25966017,3205.7,3205.2,0.78041]
[1736885424871,0.31212,3205.6,3205.5,0.31212]
[1736885425177,3.30402707,3205.6,3205.3,0.31215]
[1736885425367,3.30402707,3205.6,3205.0,2.99003835]
[1736885425571,0.31215,3205.4,3205.3,0.31214]
[1736885425769,0.31213,3205.5,3205.4,0.31213]
[1736885425973,3.69707039,3205.4,3205.3,0.31214]
[1736885426171,3.69705039,3205.5,3205.1,0.31217]
[1736885426373,3.69706039,3205.5,3205.0,2.99003835]
[1736885426676,0.31213,3205.6,3205.0,3.77047835]
[1736885426867,0.31213,3205.6,3205.5,0.31213]
[1736885427071,3.5664991,3205.5,3205.4,0.31214]
[1736885427272,3.2543691,3205.6,3205.0,2.99003835]
[1736885427576,3.44185854,3205.5,3205.0,0.31217]
[1736885427874,0.31217,3205.2,3205.1,0.31217]
[1736885428077,0.31217,3205.2,3205.0,0.31217]
[1736885428279,3.44185854,3205.2,3204.8,0.9598]
[1736885428779,0.31216,3205.3,3205.0,0.31218]
[1736885429076,3.43386559,3205.2,3204.9,0.31218]
[1736885429271,3.43386559,3205.2,3204.7,40.8]
[1736885429466,0.3122,3204.8,3204.7,40.8]
[1736885429673,0.31218,3205.0,3204.8,0.3122]
[1736885430073,3.27180124,3204.9,3204.6,0.31221]
[1736885430381,3.30769519,3205.0,3204.5,3.2078]
[1736885430574,3.30769519,3205.0,3204.6,40.8]
[1736885430776,0.4967,3205.4,3204.7,2.99003835]
[1736885430976,0.31215,3205.3,3205.1,0.31216]
[1736885431184,3.30769519,3205.3,3205.2,0.31216]
[1736885431372,3.30769519,3205.3,3205.0,2.99003835]
[1736885431575,0.31214,3205.4,3205.2,0.31216]
[1736885431778,0.31212,3205.6,3205.4,0.31214]
[1736885432177,3.46258698,3205.5,3205.4,0.31214]
[1736885432376,3.77471698,3205.5,3205.4,0.31214]
[1736885432584,3.51944685,3205.6,3204.7,2.99003835]
[1736885432777,4.29977685,3205.5,3204.6,40.8]
[1736885433076,0.78033,3205.5,3204.7,2.99003835]
[1736885433282,3.51944685,3205.6,3204.6,40.8]
[1736885433283,3.59588054,3205.4,3205.0,2.99003835]
[1736885433782,3.59588054,3205.5,3204.6,40.8]
[1736885433984,0.31219,3205.0,3204.9,0.31219]
[1736885434185,0.78036,3205.4,3204.6,40.8]
[1736885434186,0.78038,3205.3,3204.6,40.8]
[1736885434377,0.31221,3204.7,3204.6,40.8]
[1736885434573,0.78044,3205.1,3204.5,3.2078]
[1736885434779,0.31223,3204.5,3204.4,0.31223]
[1736885434983,0.31222,3204.6,3204.4,41.11223]
[1736885435282,2.81042103,3204.5,3204.4,41.11223]
[1736885435480,3.49487923,3204.6,3204.5,0.31223]
[1736885435683,0.31221,3204.7,3204.5,0.31223]
[1736885435881,0.31221,3204.7,3204.4,40.8]
[1736885436182,3.49487923,3204.6,3204.5,0.31222]
[1736885436782,3.80709923,3204.6,3204.5,0.31222]
[1736885436982,3.49487923,3204.6,3204.5,0.31222]
[1736885437185,3.49818835,3204.7,3204.4,40.8]
[1736885437379,0.9595,3205.0,3204.4,40.8]
[1736885437380,3.2078,3204.9,3204.4,40.8]
[1736885437582,0.31222,3204.6,3204.5,0.31223]
[1736885437989,3.73974634,3204.6,3204.5,0.31223]
[1736885438385,3.42752634,3204.6,3204.4,40.8]
[1736885438782,0.31221,3204.7,3204.4,41.11223]
[1736885438983,0.31222,3204.6,3204.4,41.11223]
[1736885439184,3.80994666,3204.6,3204.4,41.11223]
[1736885439385,0.31222,3204.6,3204.4,41.11223]
[1736885439583,3.66706427,3204.5,3204.4,40.8]
[1736885439884,0.31223,3204.5,3204.4,40.8]
[1736885440085,3.52003,3204.5,3204.4,40.8]
[1736885440283,6.87486427,3204.5,3204.4,40.8]
[1736885440792,6.87486427,3204.5,3203.6,3.2078]
[1736885440793,0.31226,3204.2,3204.1,0.31226]
[1736885441089,0.31227,3204.1,3204.0,0.31227]
[1736885441290,0.31227,3204.1,3204.0,41.11227]
[1736885441493,0.31227,3204.1,3204.0,40.8]
[1736885441794,3.2078,3204.5,3204.1,0.31226]
[1736885442096,0.7805,3204.9,3204.4,2.99003835]
[1736885442097,3.2078,3204.9,3204.4,2.99003835]
[1736885442282,0.4543,3205.2,3204.4,2.99003835]
[1736885442486,0.4739,3205.0,3204.9,0.31219]
[1736885442792,3.19671517,3204.9,3204.4,2.99003835]
[1736885442987,0.3122,3204.8,3204.5,0.31223]
[1736885443187,0.31221,3204.7,3204.6,0.31221]
[1736885443498,3.44883859,3204.7,3204.6,0.31221]
[1736885443699,3.44883859,3204.9,3204.6,41.11221]
[1736885443889,0.78042,3205.2,3204.6,40.8]
[1736885443890,3.44883859,3205.0,3204.6,40.8]
[1736885444089,0.31221,3204.7,3204.6,40.8]
[1736885444389,3.51309396,3204.7,3204.6,40.8]
[1736885444786,3.20088396,3204.7,3204.6,41.11222]
[1736885445293,0.31221,3204.7,3204.6,40.8]
[1736885445594,3.45198147,3204.7,3204.6,41.11221]
[1736885445995,0.31221,3204.8,3204.6,41.11221]
[1736885446196,3.45198147,3204.7,3204.6,40.8]
[1736885446392,3.45198147,3204.7,3204.6,41.11222]
[1736885446598,3.64080466,3204.8,3204.6,41.11222]
[1736885446791,0.31221,3204.8,3204.6,41.11222]
[1736885447195,3.32859466,3204.7,3204.6,41.11222]
[1736885447698,3.64080466,3204.7,3204.6,40.8]
[1736885448093,0.31221,3204.7,3204.6,41.11222]
[1736885448396,3.37804443,3204.7,3204.0,3.98849]
[1736885448792,0.31222,3204.6,3204.4,0.31223]
[1736885449101,3.37804443,3204.5,3204.3,0.31225]
[1736885449393,1.09267,3204.9,3204.1,43.58330939]
[1736885449394,0.31225,3204.3,3204.1,43.58330939]
[1736885449593,0.31223,3204.5,3204.3,0.31224]
[1736885449797,0.31222,3204.6,3204.2,0.31226]
[1736885450096,3.54774184,3204.4,3204.1,40.8]
[1736885450297,3.54774184,3204.5,3204.4,0.31224]
[1736885450492,0.4767,3204.8,3204.3,2.47104939]
[1736885450692,0.4767,3204.8,3204.7,0.31221]
[1736885451092,3.60618105,3204.8,3204.7,0.31221]
[1736885452390,3.61677002,3204.9,3204.7,0.3122]
[1736885452596,1.4424,3205.3,3204.7,0.3122]
[1736885452893,3.29737118,3205.1,3205.0,0.31218]
[1736885453095,3.29737118,3205.2,3205.0,0.31218]
[1736885453400,0.31217,3205.1,3205.0,0.31218]
[1736885453593,3.60418521,3205.2,3204.6,2.47104939]
[1736885453900,1.4424,3205.3,3204.6,2.47104939]
[1736885454193,0.31219,3204.9,3204.8,0.31219]
[1736885454389,3.60418521,3205.2,3204.5,0.4907]
[1736885454595,0.31221,3204.8,3204.7,0.31221]
[1736885454996,3.63320392,3204.8,3204.7,0.31221]
[1736885455497,3.32099392,3204.8,3204.7,0.31221]
[1736885455995,3.34379639,3205.2,3205.1,0.31217]
[1736885456200,0.77795,3205.3,3205.1,0.31217]
[1736885456400,3.40574446,3205.2,3205.1,0.31217]
[1736885457095,3.71790446,3205.2,3205.1,0.31217]
[1736885457993,3.40574446,3205.2,3205.1,0.31217]
[1736885458995,3.71790446,3205.2,3205.1,0.31217]
[1736885460403,3.40574446,3205.2,3205.1,0.31217]
[1736885460904,0.31221,3204.8,3204.7,0.3122]
[1736885461297,3.79006276,3204.8,3204.7,0.3122]
[1736885462000,3.79006276,3204.8,3204.6,0.31222]
[1736885462209,3.47785276,3204.8,3204.5,0.4907]
[1736885462400,3.47785276,3204.8,3204.6,2.47104939]
[1736885462602,0.3122,3204.8,3204.6,2.78325939]
[1736885463010,3.44136336,3204.7,3204.6,2.78325939]
[1736885464609,3.75357336,3204.7,3204.6,0.01716676]
[1736885464804,4.22217336,3204.7,3204.6,0.01716676]
[1736885465103,4.22217336,3204.7,3203.4,3.2078]
[1736885465104,5.87567877,3204.7,3203.4,3.2078]
[1736885465310,3.98848,3204.1,3203.4,3.2078]
[1736885465510,0.9495,3204.0,3203.5,40.8]
[1736885465803,0.9495,3204.0,3202.2,12.17549181]
[1736885465804,0.31236,3203.2,3203.0,2.78341939]
[1736885466010,0.31238,3203.0,3202.7,7.79444611]
[1736885466200,3.58013456,3203.1,3202.8,41.11239]
[1736885466401,3.26776456,3202.9,3202.8,41.11239]
[1736885466607,0.31238,3203.0,3202.8,41.11239]
[1736885466808,3.31360011,3203.0,3202.8,41.11239]
[1736885467111,0.31233,3203.5,3202.8,41.11239]
[1736885467300,3.31360011,3202.9,3202.8,41.11239]
[1736885467806,0.31237,3203.1,3202.8,41.11239]
[1736885467807,3.59429401,3203.0,3202.9,0.31238]
[1736885468007,0.31237,3203.1,3202.9,0.31238]
[1736885468211,3.59429401,3203.0,3202.9,0.31238]
[1736885469012,3.59429401,3203.0,3202.8,41.11239]
[1736885469205,3.59429401,3203.0,3202.9,0.31238]
[1736885469608,3.46138707,3203.1,3202.9,0.31238]
[1736885470006,3.46138707,3203.1,3203.0,0.31237]
[1736885470199,3.2078,3203.7,3203.6,0.31232]
[1736885470398,0.9495,3204.0,3203.9,0.31229]
[1736885470603,3.2078,3204.5,3204.4,0.31224]
[1736885470905,0.4837,3204.9,3204.5,0.31222]
[1736885471104,0.31222,3204.6,3204.4,41.11223]
[1736885471307,3.55837436,3204.5,3204.4,41.11223]
[1736885471500,0.4837,3204.9,3204.4,40.8]
[1736885471702,3.6015709,3204.5,3204.4,41.11224]
[1736885472208,0.3122,3204.8,3204.5,0.31222]
[1736885472412,0.31221,3204.7,3204.5,0.31223]
[1736885472611,3.56964924,3204.6,3204.5,0.31223]
[1736885472908,0.31221,3204.7,3204.5,0.31223]
[1736885473109,0.31221,3204.7,3204.4,40.8]
[1736885473406,3.40907309,3204.6,3204.5,0.31223]
[1736885473805,3.6814,3205.2,3204.5,3.52003]
[1736885474007,0.9664,3205.7,3205.0,2.99413102]
[1736885474205,0.9664,3205.7,3204.9,3.98826]
[1736885474206,0.4966,3205.7,3205.6,0.31212]
[1736885474603,3.95412308,3205.7,3205.6,0.31212]
[1736885474798,3.95412308,3205.7,3205.3,2.99413102]
[1736885475004,3.95412308,3205.7,3205.1,3.2078]
[1736885475204,4.26623308,3205.7,3205.6,0.31212]
[1736885475406,4.26623308,3205.7,3205.5,0.31212]
[1736885475606,4.26623308,3205.7,3205.1,3.98822]
[1736885475807,4.26623308,3205.7,3205.5,0.31212]
[1736885476208,4.26624308,3205.7,3205.5,0.31212]
[1736885476413,4.26624308,3205.7,3205.6,40.8]
[1736885476610,3.95412308,3205.7,3205.6,41.11212]
[1736885476811,3.45752308,3205.7,3205.6,41.11212]
[1736885477211,0.31209,3205.9,3205.7,0.3121]
[1736885477413,3.40891492,3206.0,3205.6,40.8]
[1736885477615,3.25556078,3205.8,3205.7,0.31211]
[1736885477911,3.25556078,3205.9,3205.8,0.3121]
[1736885478214,3.2078,3206.1,3205.6,40.8]
[1736885478410,0.9691,3206.3,3206.2,0.31206]
[1736885478607,3.2078,3206.6,3206.5,0.31203]
[1736885478808,0.31202,3206.7,3206.5,0.31203]
[1736885479109,3.49212448,3206.4,3206.3,0.31205]
[1736885479311,3.49212448,3206.6,3206.3,0.31204]
[1736885479511,3.50834835,3206.4,3206.3,0.31204]
[1736885479811,3.2078,3207.0,3205.9,6.20193102]
[1736885480015,3.50834835,3206.4,3206.3,0.31205]
[1736885480405,0.31204,3206.4,3205.9,6.20193102]
[1736885480715,3.8314294,3206.4,3206.1,0.31207]
[1736885480905,0.31205,3206.3,3206.0,0.31208]
[1736885481110,0.31207,3206.2,3205.9,3.2078]
[1736885481418,3.8314594,3206.2,3205.9,3.2078]
[1736885481612,0.31207,3206.2,3205.7,0.4839]
[1736885481812,3.60239671,3206.1,3205.9,0.31209]
[1736885482214,2.72436206,3206.2,3205.8,0.3121]
[1736885482418,3.03643206,3206.2,3205.8,0.3121]
[1736885482618,0.31207,3206.2,3205.9,0.31209]
[1736885482819,3.28161096,3206.1,3205.7,0.4839]
[1736885483116,3.28161096,3206.1,3205.8,0.3121]
[1736885483313,3.28161096,3206.1,3205.7,0.4839]
[1736885483516,3.28161096,3206.1,3205.8,0.3121]
[1736885484019,3.28161096,3206.1,3205.7,0.4839]
[1736885484217,3.28161096,3206.1,3205.9,6.20193102]
[1736885484423,3.51983,3206.6,3206.2,0.31206]
[1736885484613,1.4754,3207.1,3206.5,2.99413102]
[1736885484820,3.2078,3207.6,3207.3,0.31195]
[1736885485020,0.31192,3207.7,3207.2,3.30609102]
[1736885485216,0.31192,3207.7,3207.3,40.8]
[1736885485217,3.6181012,3207.5,3207.3,40.8]
[1736885485418,7.1378212,3207.7,3207.3,40.8]
[1736885485622,2.51163993,3207.6,3207.3,40.8]
[1736885485822,0.31195,3207.4,3207.3,40.8]
[1736885486220,3.70774921,3207.4,3207.3,40.8]
[1736885486418,4.17567921,3207.4,3206.5,3.2078]
[1736885486720,0.312,3206.9,3206.5,3.51982]
[1736885486923,3.2078,3207.1,3206.6,40.8]
[1736885487127,3.28446789,3206.8,3206.6,40.8]
[1736885487317,0.31201,3206.7,3206.6,40.8]
[1736885487523,0.31202,3206.6,3206.2,0.31206]
[1736885487722,3.32218021,3206.7,3206.1,3.51987]
[1736885488023,0.31206,3206.3,3206.1,3.2078]
[1736885488223,3.6659,3206.6,3205.9,40.8]
[1736885488423,3.32218021,3206.2,3205.9,40.8]
[1736885488625,0.31205,3206.3,3206.0,0.31208]
[1736885488927,3.2669996,3206.2,3205.9,40.8]
[1736885489128,3.2669996,3206.2,3205.9,41.11209]
[1736885489326,0.31207,3206.2,3205.9,40.8]
[1736885489624,3.66904154,3206.1,3205.9,40.8]
[1736885490025,0.31208,3206.1,3205.9,40.8]
[1736885490226,3.35696154,3206.0,3205.9,41.11209]
[1736885490628,3.3632525,3206.1,3205.9,41.11209]
[1736885490926,0.31207,3206.2,3206.0,0.31208]
[1736885491124,3.3632525,3206.1,3206.0,0.31208]
[1736885491326,3.3632525,3206.1,3205.9,41.11209]
[1736885491628,3.71813068,3206.2,3205.9,41.11209]
[1736885491830,0.31207,3206.2,3205.9,41.11209]
[1736885492024,3.57731792,3206.1,3205.9,41.11209]
[1736885492731,3.57731792,3206.1,3206.0,0.31208]
[1736885493028,0.9513,3206.5,3205.9,41.11209]
[1736885493228,3.71693935,3206.2,3205.9,41.11209]
[1736885493525,3.40486935,3206.2,3206.1,0.31207]
[1736885493830,0.77996,3207.1,3206.1,0.31207]
[1736885493831,3.2078,3207.4,3206.5,0.78009]
[1736885494026,3.2078,3207.4,3206.6,0.31202]
[1736885494027,0.312,3206.9,3206.6,0.31202]
[1736885494223,3.2078,3207.4,3206.7,0.31201]
[1736885494224,3.92868004,3207.0,3206.7,0.31201]
[1736885494419,0.312,3206.9,3206.8,40.8]
[1736885494934,0.312,3206.9,3206.0,1.403]
[1736885494935,3.31913986,3206.9,3205.8,2.99413102]
[1736885495235,0.31205,3206.4,3206.1,0.31207]
[1736885495534,3.57234311,3206.3,3206.1,0.31207]
[1736885496032,3.57234311,3206.3,3206.2,0.31206]
[1736885496339,0.31203,3206.6,3205.9,40.8]
[1736885496544,0.31203,3206.6,3206.3,0.31205]
[1736885496545,3.57234311,3206.4,3206.3,0.31205]
[1736885496927,3.33161381,3206.5,3206.3,0.31205]
[1736885497129,3.2078,3206.6,3205.9,41.2874]
[1736885497438,6.20193102,3206.2,3204.9,0.31218]
[1736885497641,0.31218,3205.1,3204.7,2.99413102]
[1736885497834,0.31215,3205.3,3204.8,40.8]
[1736885498137,3.2078,3205.6,3205.1,0.31217]
[1736885498138,3.33600925,3205.2,3205.1,0.31217]
[1736885498540,3.33600925,3205.2,3205.0,2.99413102]
[1736885498541,3.34630555,3205.3,3205.0,2.99413102]
[1736885498737,3.34630555,3205.3,3205.2,6.51409102]
[1736885498933,0.31211,3205.7,3205.4,0.31214]
[1736885499338,3.34630555,3205.6,3205.4,0.31214]
[1736885499839,3.34630555,3205.6,3205.2,2.99413102]
[1736885500037,3.65842555,3205.6,3205.3,0.31215]
[1736885500242,0.31212,3205.6,3205.2,2.99413102]
[1736885500433,3.25965896,3205.7,3205.3,0.31215]
[1736885500434,3.25965896,3205.5,3205.3,0.31215]
[1736885500738,3.2078,3205.5,3205.0,3.2078]
[1736885500938,0.4752,3205.4,3205.0,3.2078]
[1736885501138,0.31217,3205.1,3205.0,3.2078]
[1736885501641,6.70808878,3205.1,3204.0,2.99413102]
[1736885501938,0.31227,3204.1,3203.8,0.31229]
[1736885502136,3.2078,3204.3,3203.3,7.19783102]
[1736885502441,3.2078,3203.9,3203.0,2.99413102]
[1736885502942,0.31232,3203.6,3203.2,0.31235]
[1736885503144,3.2078,3203.5,3202.9,3.2078]
[1736885503330,6.56114964,3203.5,3203.0,40.8]
[1736885503538,0.31236,3203.1,3203.0,40.8]
[1736885503735,3.2078,3203.5,3202.5,3.2078]
[1736885503942,3.48311845,3203.1,3203.0,0.31237]
[1736885504136,0.31234,3203.4,3203.0,41.11237]
[1736885504438,3.48311845,3203.3,3203.0,40.8]
[1736885504639,3.52013,3203.5,3203.0,41.11237]
[1736885504845,3.27825977,3203.4,3203.0,40.8]
[1736885505043,3.52013,3203.5,3203.1,0.31236]
[1736885505240,3.27825977,3203.4,3203.0,40.8]
[1736885505446,3.27825977,3203.4,3203.2,0.31235]
[1736885505946,3.27825977,3203.4,3203.3,0.31235]
[1736885506442,3.34403029,3203.5,3203.4,0.31234]
[1736885506648,0.31229,3203.9,3203.4,41.11234]
[1736885506840,3.48007321,3203.5,3203.4,41.11234]
[1736885507042,3.48007321,3203.7,3203.4,41.11234]
[1736885507237,0.4752,3204.0,3203.4,40.8]
[1736885507546,3.32068274,3203.6,3203.4,40.8]
[1736885507749,3.32068274,3203.7,3203.4,40.8]
[1736885507945,0.31229,3203.9,3203.5,0.31233]
[1736885508248,3.32068274,3203.6,3203.5,0.31233]
[1736885508447,3.32068274,3203.7,3203.4,40.8]
[1736885508646,0.4752,3204.0,3203.4,40.8]
[1736885508647,3.3521728,3203.9,3203.4,40.8]
[1736885508844,3.6644628,3203.9,3203.5,0.31232]
[1736885509148,3.3521728,3203.7,3203.5,0.31232]
[1736885509335,3.3521728,3203.8,3203.5,0.31232]
[1736885509534,0.31229,3203.9,3203.5,0.31232]
[1736885509838,3.27953977,3203.8,3203.7,0.31231]
[1736885510341,3.27953977,3203.9,3203.6,2.99413102]
[1736885510547,4.48377,3204.1,3203.7,0.3123]
[1736885510748,3.42566058,3204.0,3203.8,40.8]
[1736885511039,0.31228,3204.0,3203.8,40.8]
[1736885511246,0.31229,3203.9,3203.8,40.8]
[1736885511638,3.67523653,3203.9,3203.8,40.8]
[1736885512244,3.36294653,3203.9,3203.8,40.8]
[1736885512640,3.72375827,3204.0,3203.8,40.8]
[1736885512849,0.31228,3204.0,3203.8,40.8]
[1736885513242,3.41147827,3203.9,3203.8,40.8]
[1736885513448,3.72376827,3203.9,3203.8,40.8]
[1736885513950,0.31229,3203.9,3203.8,40.8]
[1736885514149,3.28712455,3203.9,3203.8,40.8]
[1736885514540,0.9637,3204.1,3203.8,40.8]
[1736885514747,0.4931,3204.1,3203.9,0.31228]
[1736885514951,3.52515702,3204.0,3203.9,0.31228]
[1736885515446,3.52515702,3204.0,3203.8,41.11229]
[1736885515650,3.52515702,3204.0,3203.9,0.31229]
[1736885517352,3.52515702,3204.0,3203.8,40.8]
[1736885517645,0.31229,3203.9,3203.8,40.8]
[1736885518154,3.71670838,3203.9,3203.8,40.8]
[1736885519457,0.31232,3203.6,3203.5,3.2078]
[1736885519949,3.81031658,3203.6,3203.5,3.2078]
[1736885520255,3.49799658,3203.6,3203.5,3.52013]
[1736885520952,0.4769,3204.6,3203.5,49.0078]
[1736885521154,2.99413102,3205.6,3204.9,0.31219]
[1736885521155,1.23447,3205.1,3204.9,0.31219]
[1736885521355,0.9223,3205.1,3204.6,2.99413102]
[1736885521554,3.58542583,3205.0,3204.8,0.3122]
[1736885521751,3.27324583,3205.0,3204.9,0.31219]
[1736885522054,0.3122,3204.9,3204.7,0.3122]
[1736885522452,3.46915081,3204.8,3204.6,6.20193102]
[1736885522647,3.46915081,3204.8,3204.7,0.31221]
[1736885522847,0.461,3205.3,3204.6,6.20193102]
[1736885522848,3.57842942,3204.9,3204.6,6.20193102]
[1736885523057,0.31217,3205.2,3205.0,0.31217]
[1736885523058,0.39470509,3205.2,3205.0,0.31217]
[1736885523353,3.46915081,3205.1,3205.0,44.0078]
[1736885523553,0.31213,3205.5,3205.2,0.31215]
[1736885523750,3.4258774,3205.3,3205.2,3.30629102]
[1736885523951,3.4258774,3205.5,3205.4,0.31214]
[1736885524163,3.5199,3205.9,3205.2,2.99413102]
[1736885524462,3.4258774,3205.8,3205.5,2.99413102]
[1736885524756,3.2078,3205.9,3205.8,0.3121]
[1736885525163,3.27459167,3205.9,3205.8,3.5199]
[1736885525459,0.9256,3206.6,3205.8,6.20193102]
[1736885525757,3.42817536,3206.5,3205.8,6.20193102]
[1736885525955,0.31206,3206.3,3206.0,0.31208]
[1736885526163,3.42817536,3206.5,3205.8,6.20193102]
[1736885526452,3.42817536,3206.2,3206.1,3.30620102]
[1736885526659,3.78904517,3206.5,3206.2,0.31206]
[1736885526957,3.6869,3207.0,3206.1,2.99413102]
[1736885526958,3.47700517,3206.8,3206.1,2.99413102]
[1736885527262,3.78905517,3206.4,3206.1,3.30620102]
[1736885527461,1.278,3206.9,3205.8,3.2078]
[1736885527757,3.44281805,3206.3,3205.8,6.20193102]
[1736885527957,0.31207,3206.2,3205.8,6.51403102]
[1736885528151,0.31207,3206.2,3205.9,0.31209]
[1736885528456,3.2078,3206.6,3205.8,3.2078]
[1736885528457,3.44281805,3206.1,3205.8,3.2078]
[1736885528654,3.75488805,3206.1,3205.8,3.5199]
[1736885528852,0.31206,3206.3,3206.0,0.31208]
[1736885529051,3.47617212,3206.0,3205.9,0.31209]
[1736885529358,3.47617212,3206.1,3205.9,0.31209]
[1736885529758,0.4893,3206.5,3205.8,3.2078]
[1736885529958,3.35259343,3206.1,3206.0,3.30621102]
[1736885530157,3.35259343,3206.1,3205.9,0.31209]
[1736885530355,0.31207,3206.2,3205.9,0.31209]
[1736885530753,3.52132476,3206.0,3205.9,0.31209]
[1736885530947,3.52132476,3206.1,3206.0,0.31208]
[1736885531248,3.52132476,3206.4,3206.2,0.31206]
[1736885531559,0.31204,3206.5,3206.2,0.31206]
[1736885531749,3.42745607,3206.4,3206.3,41.11205]
[1736885531950,3.42745607,3206.4,3206.3,40.8]
[1736885532150,0.31204,3206.4,3206.3,40.8]
[1736885532561,3.73949607,3206.4,3206.3,40.8]
[1736885532854,0.31205,3206.3,3205.8,3.2078]
[1736885533064,0.31207,3206.1,3205.8,3.5199]
[1736885533454,3.37635709,3206.0,3205.8,3.5199]
[1736885533655,3.37635709,3206.0,3205.8,3.2078]
[1736885533854,0.31209,3205.9,3205.8,3.2078]
[1736885534063,0.31209,3206.0,3205.8,3.2078]
[1736885534252,0.39120826,3205.9,3205.8,3.2078]
[1736885534657,0.70329826,3205.9,3205.8,3.2078]
[1736885534861,0.39120826,3205.9,3205.8,3.2078]
[1736885535062,0.31209,3206.0,3205.8,3.2078]
[1736885535357,3.33939238,3205.9,3205.8,3.2078]
[1736885535753,3.65148238,3205.9,3205.8,3.2078]
[1736885536055,0.31209,3205.9,3205.8,3.2078]
[1736885536560,3.39979997,3205.9,3205.8,3.5199]
[1736885536760,3.39979997,3205.9,3205.8,3.2078]
[1736885536966,3.32081608,3206.1,3205.8,3.2078]
[1736885537265,3.32081608,3205.9,3205.8,3.5199]
[1736885537461,1.399,3206.3,3205.8,3.2078]
[1736885537462,3.32081608,3206.1,3205.8,3.2078]
[1736885537763,0.31208,3206.1,3205.8,3.2078]
[1736885537950,0.31208,3206.1,3205.9,0.31209]
[1736885538155,3.328998,3206.0,3205.9,0.31209]
[1736885538762,1.399,3206.3,3205.9,0.31209]
[1736885538962,0.31208,3206.1,3205.9,0.31209]
[1736885539265,3.59268994,3206.0,3205.8,3.51989]
[1736885539465,0.31208,3206.1,3205.9,0.31209]
[1736885539665,3.6080924,3206.0,3205.9,0.31209]
[1736885540163,3.6080924,3206.2,3206.1,0.31207]
[1736885540360,3.6080924,3206.2,3205.8,3.2078]
[1736885540361,3.2078,3206.6,3206.0,2.99413102]
[1736885540565,3.2078,3206.6,3206.5,0.31203]
[1736885540967,6.71602966,3206.6,3206.5,41.11203]
[1736885541260,6.71602966,3206.6,3206.5,40.8]
[1736885541466,7.02804966,3206.6,3206.5,40.8]
[1736885542662,6.71602966,3206.6,3205.8,3.2078]
[1736885542862,0.31207,3206.2,3206.0,0.31208]
[1736885543262,0.31207,3206.2,3206.1,40.8]
[1736885543756,3.75298484,3206.2,3206.1,40.8]
[1736885544666,3.75298484,3206.2,3206.1,41.11207]
[1736885544862,3.75298484,3206.2,3206.1,40.8]
[1736885545465,3.44091484,3206.2,3206.1,41.11207]
[1736885545665,3.75297484,3206.2,3206.1,40.8]
[1736885545869,0.31206,3206.3,3206.2,0.31206]
[1736885546070,0.4842,3206.5,3206.4,0.31204]
[1736885546369,3.2078,3206.6,3206.5,0.31203]
[1736885546670,3.39922344,3206.5,3206.4,2.78040911]
[1736885546865,3.71125344,3206.5,3206.4,2.78040911]
[1736885547070,0.31203,3206.5,3206.4,2.78040911]
[1736885547270,3.39922344,3206.5,3206.4,2.78040911]
[1736885548073,3.39922344,3206.5,3206.4,2.46836911]
[1736885548264,3.39922344,3206.5,3206.4,2.78040911]
[1736885548467,3.71125344,3206.5,3206.4,2.78040911]
[1736885548774,3.71125344,3206.5,3206.4,2.46836911]
[1736885548974,3.71125344,3206.5,3206.3,0.31205]
[1736885549176,0.31205,3206.4,3206.2,0.31206]
[1736885549472,0.31205,3206.4,3206.3,0.31205]
[1736885549672,3.2078,3206.6,3206.3,0.31205]
[1736885549874,3.59337016,3206.4,3206.3,0.31205]
[1736885550063,0.31206,3206.2,3206.1,40.8]
[1736885550270,0.31207,3206.1,3205.9,0.31209]
[1736885550775,3.59337016,3206.0,3205.9,0.31209]
[1736885551072,0.31207,3206.2,3205.8,5.67616911]
[1736885551073,3.27235005,3206.1,3205.8,5.67616911]
[1736885551372,0.31207,3206.1,3206.0,0.31208]
[1736885551774,3.64610667,3206.1,3206.0,0.31208]
[1736885551968,0.31207,3206.1,3205.9,0.31209]
[1736885552276,3.64610667,3206.1,3205.9,0.31209]
[1736885553872,3.33403667,3206.1,3206.0,0.31208]
[1736885554173,0.77846,3206.3,3206.2,0.31206]
[1736885554472,0.77846,3206.3,3206.2,40.8]
[1736885554473,3.38622842,3206.3,3206.2,40.8]
[1736885554674,3.38622842,3206.3,3206.2,41.11206]
[1736885554979,0.76471,3206.8,3206.7,0.31201]
[1736885555169,3.2078,3207.0,3206.7,2.46836911]
[1736885555365,1.72544,3207.5,3207.3,0.31196]
[1736885555572,2.46836911,3208.4,3207.3,2.46836911]
[1736885555573,0.4956,3208.0,3207.3,2.46836911]
[1736885555771,3.56399196,3207.7,3207.6,2.78029911]
[1736885555972,3.25207196,3207.9,3207.6,43.58029911]
[1736885556165,3.25207196,3207.9,3207.6,43.26836911]
[1736885556379,3.25207196,3207.7,3207.6,43.58029911]
[1736885556675,0.31191,3207.8,3207.6,43.58029911]
[1736885556867,4.1257,3208.2,3207.6,43.26836911]
[1736885557071,0.31189,3208.0,3207.9,2.46836911]
[1736885557573,3.50026511,3208.1,3207.9,6.19559681]
[1736885557773,3.50026511,3208.1,3208.0,0.31189]
[1736885557972,3.58832911,3208.4,3208.0,0.31189]
[1736885558173,0.31186,3208.3,3207.9,6.19559681]
[1736885558382,0.31186,3208.3,3208.1,0.31187]
[1736885558573,3.50026511,3208.2,3207.9,6.19559681]
[1736885558771,0.31189,3208.0,3207.9,3.2078]
[1736885558967,3.2078,3208.3,3207.6,40.8]